[Event "Titled Tuesday Blitz May 23 Early 2023"]
[White "Ovezdurdyyeva, Jemal"]
[Black "Martic, Ivan"]
[WhiteFideId "14001888"]
[BlackFideId "929301"]
[WhiteElo "2043"]
[BlackElo "2360"]
[Result "0-1"]
[Round "06"]
[TimeControl "180+2"]
[Date "2023.05.23"]
[WhiteClock "0:00:09"]
[BlackClock "0:00:15"]

1. e4 {[%clk 0:03:00]}  c5 {[%clk 0:02:57]} 2. Nf3 {[%clk 0:03:00]}  Nc6 {[%clk 0:02:57]} 3. c3 {[%clk 0:03:00]}  d5 {[%clk 0:02:56]} 4. exd5 {[%clk 0:02:59]}  Qxd5 {[%clk 0:02:57]} 5. d4 {[%clk 0:02:59]}  Bg4 {[%clk 0:02:55]} 6. Be2 {[%clk 0:02:59]}  e6 {[%clk 0:02:43]} 7. O-O {[%clk 0:02:59]}  Nf6 {[%clk 0:02:39]} 8. Be3 {[%clk 0:02:57]}  cxd4 {[%clk 0:02:37]} 9. cxd4 {[%clk 0:02:54]}  Be7 {[%clk 0:02:38]} 10. Nc3 {[%clk 0:02:53]}  Qa5 {[%clk 0:02:38]} 11. Qb3 {[%clk 0:02:49]}  Qb4 {[%clk 0:02:37]} 12. Qxb4 {[%clk 0:02:39]}  Bxb4 {[%clk 0:02:36]} 13. a3 {[%clk 0:02:36]}  Be7 {[%clk 0:02:29]} 14. Rfd1 {[%clk 0:02:34]}  O-O {[%clk 0:02:27]} 15. d5 {[%clk 0:02:34]}  exd5 {[%clk 0:02:25]} 16. Nxd5 {[%clk 0:02:34]}  Nxd5 {[%clk 0:02:26]} 17. Rxd5 {[%clk 0:02:35]}  Bf6 {[%clk 0:02:25]} 18. Rb5 {[%clk 0:02:31]}  b6 {[%clk 0:02:18]} 19. h3 {[%clk 0:02:31]}  Bd7 {[%clk 0:02:07]} 20. Rd1 {[%clk 0:02:24]}  Rfd8 {[%clk 0:01:25]} 21. Bf4 {[%clk 0:02:23]}  Be8 {[%clk 0:01:20]} 22. Rxd8 {[%clk 0:01:55]}  Rxd8 {[%clk 0:01:21]} 23. Rb3 {[%clk 0:01:55]}  Nd4 {[%clk 0:01:10]} 24. Nxd4 {[%clk 0:01:55]}  Bxd4 {[%clk 0:01:10]} 25. Rb4 {[%clk 0:01:28]}  h6 {[%clk 0:00:56]} 26. b3 {[%clk 0:01:16]}  Bc5 {[%clk 0:00:52]} 27. Re4 {[%clk 0:01:10]}  Bc6 {[%clk 0:00:30]} 28. Rc4 {[%clk 0:01:00]}  Bd5 {[%clk 0:00:27]} 29. Ra4 {[%clk 0:00:52]}  a5 {[%clk 0:00:21]} 30. b4 {[%clk 0:00:32]}  axb4 {[%clk 0:00:17]} 31. axb4 {[%clk 0:00:32]}  Bf8 {[%clk 0:00:18]} 32. b5 {[%clk 0:00:28]}  Bc5 {[%clk 0:00:17]} 33. Ra7 {[%clk 0:00:27]}  Re8 {[%clk 0:00:17]} 34. Kf1 {[%clk 0:00:21]}  g5 {[%clk 0:00:16]} 35. Bg3 {[%clk 0:00:20]}  Bb4 {[%clk 0:00:16]} 36. Rd7 {[%clk 0:00:18]}  Bc4 {[%clk 0:00:16]} 37. Rd8 {[%clk 0:00:09]}  Bxe2+ {[%clk 0:00:15]} 0-1


[Site "https://www.chess.com"]

[Event "Titled Tuesday Blitz May 23 Early 2023"]
[White "Berezin, Viktor"]
[Black "Hinds, Nathan"]
[WhiteFideId "14107872"]
[BlackFideId "7400730"]
[WhiteElo "2310"]
[BlackElo "2001"]
[Result "1-0"]
[Round "06"]
[TimeControl "180+2"]
[Date "2023.05.23"]
[WhiteClock "0:00:12"]
[BlackClock "0:00:00"]

1. d4 {[%clk 0:02:56]}  Nf6 {[%clk 0:02:59]} 2. Nf3 {[%clk 0:02:54]}  e6 {[%clk 0:02:59]} 3. c4 {[%clk 0:02:54]}  b6 {[%clk 0:02:58]} 4. g3 {[%clk 0:02:54]}  Bb7 {[%clk 0:02:58]} 5. Bg2 {[%clk 0:02:55]}  d5 {[%clk 0:02:59]} 6. O-O {[%clk 0:02:55]}  Be7 {[%clk 0:02:59]} 7. Ne5 {[%clk 0:02:56]}  O-O {[%clk 0:02:57]} 8. Nd2 {[%clk 0:02:56]}  c5 {[%clk 0:02:57]} 9. cxd5 {[%clk 0:02:56]}  Bxd5 {[%clk 0:02:57]} 10. Ndf3 {[%clk 0:02:54]}  Nc6 {[%clk 0:02:54]} 11. Bf4 {[%clk 0:02:53]}  Nxd4 {[%clk 0:02:43]} 12. Nxd4 {[%clk 0:02:45]}  Bxg2 {[%clk 0:02:42]} 13. Nxe6 {[%clk 0:02:15]}  fxe6 {[%clk 0:02:23]} 14. Qxd8 {[%clk 0:02:03]}  Raxd8 {[%clk 0:02:19]} 15. Kxg2 {[%clk 0:02:03]}  Nd5 {[%clk 0:02:17]} 16. Nc6 {[%clk 0:01:39]}  Nxf4+ {[%clk 0:02:13]} 17. gxf4 {[%clk 0:01:39]}  Rd7 {[%clk 0:02:03]} 18. Rad1 {[%clk 0:01:32]}  Rc7 {[%clk 0:01:30]} 19. Nxe7+ {[%clk 0:01:23]}  Rxe7 {[%clk 0:01:31]} 20. e3 {[%clk 0:01:24]}  e5 {[%clk 0:01:26]} 21. fxe5 {[%clk 0:01:19]}  Rxe5 {[%clk 0:01:27]} 22. Rd7 {[%clk 0:01:19]}  Rf7 {[%clk 0:01:26]} 23. Rfd1 {[%clk 0:01:16]}  g6 {[%clk 0:01:17]} 24. h4 {[%clk 0:00:45]}  Ree7 {[%clk 0:01:17]} 25. Rxe7 {[%clk 0:00:44]}  Rxe7 {[%clk 0:01:18]} 26. h5 {[%clk 0:00:43]}  Kf7 {[%clk 0:01:18]} 27. h6 {[%clk 0:00:42]}  Ke6 {[%clk 0:01:14]} 28. f4 {[%clk 0:00:39]}  b5 {[%clk 0:01:04]} 29. Kf3 {[%clk 0:00:38]}  c4 {[%clk 0:01:02]} 30. e4 {[%clk 0:00:38]}  Rc7 {[%clk 0:01:00]} 31. Ke3 {[%clk 0:00:26]}  b4 {[%clk 0:00:55]} 32. Rd8 {[%clk 0:00:25]}  c3 {[%clk 0:00:53]} 33. bxc3 {[%clk 0:00:25]}  bxc3 {[%clk 0:00:54]} 34. Rd1 {[%clk 0:00:25]}  c2 {[%clk 0:00:49]} 35. Rc1 {[%clk 0:00:25]}  Rc3+ {[%clk 0:00:18]} 36. Kd4 {[%clk 0:00:25]}  Rc8 {[%clk 0:00:17]} 37. Kd3 {[%clk 0:00:25]}  Rd8+ {[%clk 0:00:14]} 38. Kxc2 {[%clk 0:00:25]}  Rd4 {[%clk 0:00:14]} 39. Re1 {[%clk 0:00:22]}  Ra4 {[%clk 0:00:14]} 40. Kb3 {[%clk 0:00:22]}  Rd4 {[%clk 0:00:14]} 41. Kc3 {[%clk 0:00:22]}  Ra4 {[%clk 0:00:14]} 42. Re2 {[%clk 0:00:23]}  Ra3+ {[%clk 0:00:13]} 43. Kd4 {[%clk 0:00:22]}  Rf3 {[%clk 0:00:14]} 44. Rc2 {[%clk 0:00:14]}  Rxf4 {[%clk 0:00:12]} 45. Rc6+ {[%clk 0:00:15]}  Kf7 {[%clk 0:00:09]} 46. Ra6 {[%clk 0:00:16]}  Rh4 {[%clk 0:00:08]} 47. Rxa7+ {[%clk 0:00:16]}  Kf6 {[%clk 0:00:08]} 48. Rxh7 {[%clk 0:00:16]}  g5 {[%clk 0:00:06]} 49. a4 {[%clk 0:00:14]}  g4 {[%clk 0:00:06]} 50. a5 {[%clk 0:00:12]}  g3 {[%clk 0:00:06]} 51. Rg7 {[%clk 0:00:11]}  Rxh6 {[%clk 0:00:05]} 52. Rxg3 {[%clk 0:00:11]}  Rh1 {[%clk 0:00:05]} 53. Ra3 {[%clk 0:00:12]}  Rh7 {[%clk 0:00:02]} 54. a6 {[%clk 0:00:12]}  Ra7 {[%clk 0:00:03]} 55. Kc5 {[%clk 0:00:12]}  Ke6 {[%clk 0:00:03]} 56. Kb6 {[%clk 0:00:12]}  Rd7 {[%clk 0:00:03]} 57. a7 {[%clk 0:00:12]}  Rd6+ {[%clk 0:00:00]} 58. Kc5 {[%clk 0:00:12]} 1-0


[Site "https://www.chess.com"]

[Event "Titled Tuesday Blitz May 23 Early 2023"]
[White "littlepillow2010"]
[Black "Hajiyev, Kanan"]
[BlackFideId "13404148"]
[WhiteElo "2348"]
[BlackElo "2103"]
[Result "0-1"]
[Round "06"]
[TimeControl "180+2"]
[Date "2023.05.23"]
[WhiteClock "0:00:00"]
[BlackClock "0:01:07"]

1. e4 {[%clk 0:03:00]}  e5 {[%clk 0:02:59]} 2. Nf3 {[%clk 0:02:59]}  Nc6 {[%clk 0:03:00]} 3. Bc4 {[%clk 0:02:56]}  Bc5 {[%clk 0:03:00]} 4. c3 {[%clk 0:02:55]}  Nf6 {[%clk 0:02:57]} 5. d3 {[%clk 0:02:55]}  O-O {[%clk 0:02:57]} 6. O-O {[%clk 0:02:55]}  d5 {[%clk 0:02:57]} 7. exd5 {[%clk 0:02:54]}  Nxd5 {[%clk 0:02:58]} 8. b4 {[%clk 0:02:37]}  Bb6 {[%clk 0:02:50]} 9. b5 {[%clk 0:02:32]}  Na5 {[%clk 0:02:49]} 10. Nxe5 {[%clk 0:02:32]}  Nxc4 {[%clk 0:02:39]} 11. Nxc4 {[%clk 0:02:23]}  Qf6 {[%clk 0:02:32]} 12. Nxb6 {[%clk 0:02:09]}  axb6 {[%clk 0:02:33]} 13. Bb2 {[%clk 0:01:56]}  Bd7 {[%clk 0:02:24]} 14. Qd2 {[%clk 0:01:28]}  Nf4 {[%clk 0:02:21]} 15. c4 {[%clk 0:01:26]}  Qg5 {[%clk 0:02:20]} 16. g3 {[%clk 0:01:26]}  Nh3+ {[%clk 0:02:16]} 17. Kg2 {[%clk 0:01:26]}  Qg6 {[%clk 0:02:14]} 18. Nc3 {[%clk 0:01:19]}  c6 {[%clk 0:02:12]} 19. bxc6 {[%clk 0:01:08]}  Bxc6+ {[%clk 0:02:04]} 20. Nd5 {[%clk 0:01:05]}  Ng5 {[%clk 0:01:53]} 21. f3 {[%clk 0:00:24]}  Bxd5 {[%clk 0:01:49]} 22. cxd5 {[%clk 0:00:25]}  h5 {[%clk 0:01:43]} 23. h4 {[%clk 0:00:16]}  Nh7 {[%clk 0:01:41]} 24. Rfe1 {[%clk 0:00:14]}  Rfd8 {[%clk 0:01:40]} 25. Re5 {[%clk 0:00:09]}  Nf6 {[%clk 0:01:40]} 26. Rg5 {[%clk 0:00:04]}  Qh6 {[%clk 0:01:40]} 27. Bxf6 {[%clk 0:00:04]}  Qxf6 {[%clk 0:01:40]} 28. Re1 {[%clk 0:00:05]}  g6 {[%clk 0:01:37]} 29. Re2 {[%clk 0:00:05]}  Ra5 {[%clk 0:01:33]} 30. Qb2 {[%clk 0:00:03]}  Qd6 {[%clk 0:01:22]} 31. Qb3 {[%clk 0:00:02]}  Rxd5 {[%clk 0:01:19]} 32. Rxd5 {[%clk 0:00:02]}  Qxd5 {[%clk 0:01:19]} 33. Re8+ {[%clk 0:00:02]}  Kh7 {[%clk 0:01:17]} 34. Qxd5 {[%clk 0:00:02]}  Rxd5 {[%clk 0:01:17]} 35. Re7 {[%clk 0:00:03]}  Kg7 {[%clk 0:01:14]} 36. Rxb7 {[%clk 0:00:01]}  b5 {[%clk 0:01:15]} 37. Rb6 {[%clk 0:00:01]}  Kf8 {[%clk 0:01:14]} 38. Kh3 {[%clk 0:00:01]}  Ke7 {[%clk 0:01:14]} 39. f4 {[%clk 0:00:02]}  Kd7 {[%clk 0:01:14]} 40. Rb7+ {[%clk 0:00:02]}  Ke6 {[%clk 0:01:14]} 41. Rb6+ {[%clk 0:00:03]}  Kf5 {[%clk 0:01:13]} 42. Rb7 {[%clk 0:00:02]}  f6 {[%clk 0:01:14]} 43. Rb6 {[%clk 0:00:03]}  Rc5 {[%clk 0:01:11]} 44. d4 {[%clk 0:00:03]}  Rd5 {[%clk 0:01:11]} 45. a3 {[%clk 0:00:03]}  Rxd4 {[%clk 0:01:08]} 46. Rxb5+ {[%clk 0:00:04]}  Ke6 {[%clk 0:01:09]} 47. Ra5 {[%clk 0:00:04]}  Rd2 {[%clk 0:01:08]} 48. a4 {[%clk 0:00:04]}  Ra2 {[%clk 0:01:08]} 49. Ra6+ {[%clk 0:00:03]}  Kf5 {[%clk 0:01:09]} 50. Ra5+ {[%clk 0:00:03]}  Ke6 {[%clk 0:01:09]} 51. Ra8 {[%clk 0:00:03]}  Kf5 {[%clk 0:01:07]} 52. a5 {[%clk 0:00:03]}  Ke4 {[%clk 0:01:07]} 53. a6 {[%clk 0:00:03]}  Kf3 {[%clk 0:01:06]} 54. a7 {[%clk 0:00:00]}  Kf2 {[%clk 0:01:07]} 0-1


[Site "https://www.chess.com"]

[Event "Titled Tuesday Blitz May 23 Early 2023"]
[White "Avalos Parra, Joao"]
[Black "Estrada Nieto, Julian"]
[WhiteFideId "3402541"]
[BlackFideId "5101018"]
[WhiteElo "2173"]
[BlackElo "2161"]
[Result "1-0"]
[Round "06"]
[TimeControl "180+2"]
[Date "2023.05.23"]
[WhiteClock "0:00:11"]
[BlackClock "0:00:00"]

1. d4 {[%clk 0:02:58]}  d5 {[%clk 0:02:59]} 2. c4 {[%clk 0:02:58]}  dxc4 {[%clk 0:03:00]} 3. e4 {[%clk 0:02:58]}  e5 {[%clk 0:02:59]} 4. Nf3 {[%clk 0:02:59]}  exd4 {[%clk 0:02:59]} 5. Bxc4 {[%clk 0:02:59]}  Nc6 {[%clk 0:03:00]} 6. O-O {[%clk 0:02:21]}  Be6 {[%clk 0:02:59]} 7. Bb5 {[%clk 0:02:18]}  Bc5 {[%clk 0:02:58]} 8. b4 {[%clk 0:02:18]}  Bb6 {[%clk 0:02:58]} 9. a4 {[%clk 0:02:14]}  a6 {[%clk 0:02:58]} 10. Bxc6+ {[%clk 0:02:14]}  bxc6 {[%clk 0:02:58]} 11. Nbd2 {[%clk 0:02:08]}  Nf6 {[%clk 0:02:56]} 12. Ne5 {[%clk 0:02:08]}  Qd6 {[%clk 0:02:48]} 13. Nd3 {[%clk 0:02:08]}  Qd7 {[%clk 0:02:28]} 14. f4 {[%clk 0:01:48]}  Qe7 {[%clk 0:01:49]} 15. f5 {[%clk 0:01:34]}  Bd7 {[%clk 0:01:48]} 16. Qf3 {[%clk 0:01:34]}  O-O {[%clk 0:01:42]} 17. e5 {[%clk 0:01:20]}  Nd5 {[%clk 0:01:36]} 18. Ne4 {[%clk 0:01:18]}  f6 {[%clk 0:01:20]} 19. e6 {[%clk 0:01:10]}  Be8 {[%clk 0:01:20]} 20. Bb2 {[%clk 0:01:02]}  Nc3 {[%clk 0:01:14]} 21. a5 {[%clk 0:00:55]}  Ba7 {[%clk 0:01:13]} 22. Rac1 {[%clk 0:00:52]}  c5 {[%clk 0:01:09]} 23. bxc5 {[%clk 0:00:49]}  Bb5 {[%clk 0:00:58]} 24. Nxc3 {[%clk 0:00:39]}  dxc3 {[%clk 0:00:58]} 25. Rxc3 {[%clk 0:00:35]}  Rad8 {[%clk 0:00:53]} 26. Ba3 {[%clk 0:00:26]}  Rxd3 {[%clk 0:00:43]} 27. Rxd3 {[%clk 0:00:25]}  Bxd3 {[%clk 0:00:43]} 28. Qxd3 {[%clk 0:00:22]}  Bxc5+ {[%clk 0:00:43]} 29. Bxc5 {[%clk 0:00:22]}  Qxc5+ {[%clk 0:00:43]} 30. Kh1 {[%clk 0:00:22]}  Qb5 {[%clk 0:00:38]} 31. Qxb5 {[%clk 0:00:20]}  axb5 {[%clk 0:00:38]} 32. Rc1 {[%clk 0:00:21]}  Rc8 {[%clk 0:00:33]} 33. Rc6 {[%clk 0:00:19]}  Kf8 {[%clk 0:00:32]} 34. Kg1 {[%clk 0:00:20]}  Ke7 {[%clk 0:00:31]} 35. Kf2 {[%clk 0:00:19]}  Kd8 {[%clk 0:00:30]} 36. Ke3 {[%clk 0:00:19]}  Ra8 {[%clk 0:00:30]} 37. a6 {[%clk 0:00:19]}  b4 {[%clk 0:00:30]} 38. Kd3 {[%clk 0:00:19]}  b3 {[%clk 0:00:29]} 39. Kc3 {[%clk 0:00:18]}  Rb8 {[%clk 0:00:19]} 40. Kb2 {[%clk 0:00:19]}  Ra8 {[%clk 0:00:18]} 41. Kxb3 {[%clk 0:00:18]}  Kc8 {[%clk 0:00:18]} 42. Kc4 {[%clk 0:00:19]}  Kd8 {[%clk 0:00:16]} 43. Kc5 {[%clk 0:00:19]}  Ra7 {[%clk 0:00:16]} 44. Kb5 {[%clk 0:00:19]}  Ra8 {[%clk 0:00:16]} 45. Rc2 {[%clk 0:00:18]}  Ra7 {[%clk 0:00:15]} 46. Rd2+ {[%clk 0:00:17]}  Ke8 {[%clk 0:00:15]} 47. Ra2 {[%clk 0:00:13]}  Ke7 {[%clk 0:00:15]} 48. Kc6 {[%clk 0:00:14]}  Kd8 {[%clk 0:00:13]} 49. Ra4 {[%clk 0:00:11]}  Kc8 {[%clk 0:00:13]} 50. g4 {[%clk 0:00:11]}  h6 {[%clk 0:00:12]} 51. e7 {[%clk 0:00:11]}  Rxa6+ {[%clk 0:00:00]} 52. Rxa6 {[%clk 0:00:11]} 1-0


[Site "https://www.chess.com"]

[Event "Titled Tuesday Blitz May 23 Early 2023"]
[White "Alexikov, Alexander"]
[Black "Korkmaz, Necmettin"]
[WhiteFideId "14103958"]
[BlackFideId "6303285"]
[WhiteElo "2186"]
[BlackElo "2097"]
[Result "0-1"]
[Round "06"]
[TimeControl "180+2"]
[Date "2023.05.23"]
[WhiteClock "0:00:08"]
[BlackClock "0:00:14"]

1. e4 {[%clk 0:03:00]}  e5 {[%clk 0:02:58]} 2. Nf3 {[%clk 0:03:00]}  Nc6 {[%clk 0:02:58]} 3. c3 {[%clk 0:03:00]}  d5 {[%clk 0:02:44]} 4. Qa4 {[%clk 0:03:00]}  f6 {[%clk 0:02:28]} 5. Bb5 {[%clk 0:02:57]}  dxe4 {[%clk 0:02:25]} 6. Bxc6+ {[%clk 0:02:55]}  bxc6 {[%clk 0:02:24]} 7. Qxc6+ {[%clk 0:02:55]}  Bd7 {[%clk 0:02:24]} 8. Qxe4 {[%clk 0:02:54]}  Ne7 {[%clk 0:02:24]} 9. d4 {[%clk 0:02:48]}  Bc6 {[%clk 0:02:23]} 10. Qe2 {[%clk 0:02:47]}  e4 {[%clk 0:02:15]} 11. Nfd2 {[%clk 0:02:44]}  Qd5 {[%clk 0:02:02]} 12. O-O {[%clk 0:02:38]}  Ng6 {[%clk 0:01:56]} 13. Nc4 {[%clk 0:02:25]}  Bd6 {[%clk 0:01:49]} 14. f3 {[%clk 0:02:05]}  O-O {[%clk 0:01:43]} 15. fxe4 {[%clk 0:01:49]}  Qxe4 {[%clk 0:01:40]} 16. Qxe4 {[%clk 0:01:47]}  Bxe4 {[%clk 0:01:41]} 17. Nxd6 {[%clk 0:01:47]}  cxd6 {[%clk 0:01:41]} 18. Na3 {[%clk 0:01:37]}  Rfe8 {[%clk 0:01:39]} 19. Nb5 {[%clk 0:01:09]}  Bd3 {[%clk 0:01:31]} 20. Nc7 {[%clk 0:01:07]}  Bxf1 {[%clk 0:01:29]} 21. Nxe8 {[%clk 0:01:04]}  Bd3 {[%clk 0:01:08]} 22. Nxd6 {[%clk 0:01:02]}  Rd8 {[%clk 0:01:07]} 23. Nb7 {[%clk 0:01:01]}  Re8 {[%clk 0:01:06]} 24. Nc5 {[%clk 0:00:49]}  Re1+ {[%clk 0:01:05]} 25. Kf2 {[%clk 0:00:49]}  Rf1+ {[%clk 0:01:05]} 26. Kg3 {[%clk 0:00:44]}  Bb5 {[%clk 0:00:49]} 27. b3 {[%clk 0:00:40]}  Re1 {[%clk 0:00:37]} 28. c4 {[%clk 0:00:39]}  Be8 {[%clk 0:00:31]} 29. Bb2 {[%clk 0:00:36]}  Re2 {[%clk 0:00:30]} 30. Bc3 {[%clk 0:00:36]}  Re3+ {[%clk 0:00:29]} 31. Kf2 {[%clk 0:00:34]}  Rxc3 {[%clk 0:00:30]} 32. Re1 {[%clk 0:00:33]}  Kf7 {[%clk 0:00:28]} 33. a4 {[%clk 0:00:29]}  a5 {[%clk 0:00:26]} 34. Re3 {[%clk 0:00:25]}  Rc2+ {[%clk 0:00:25]} 35. Kg3 {[%clk 0:00:25]}  h5 {[%clk 0:00:24]} 36. h4 {[%clk 0:00:23]}  f5 {[%clk 0:00:20]} 37. Rf3 {[%clk 0:00:12]}  f4+ {[%clk 0:00:20]} 38. Kh3 {[%clk 0:00:11]}  Rd2 {[%clk 0:00:18]} 39. d5 {[%clk 0:00:10]}  Ke7 {[%clk 0:00:16]} 40. g3 {[%clk 0:00:08]}  fxg3 {[%clk 0:00:14]} 41. Rxg3 {[%clk 0:00:08]}  Nf4# {[%clk 0:00:14]} 0-1


[Site "https://www.chess.com"]

[Event "Titled Tuesday Blitz May 23 Early 2023"]
[White "Koutlas, Nikolaos"]
[Black "Todorovic, Bojan"]
[WhiteFideId "25827138"]
[BlackFideId "917087"]
[WhiteElo "2215"]
[BlackElo "2266"]
[Result "0-1"]
[Round "06"]
[TimeControl "180+2"]
[Date "2023.05.23"]
[WhiteClock "0:00:00"]
[BlackClock "0:00:08"]

1. e4 {[%clk 0:03:00]}  g6 {[%clk 0:02:59]} 2. Nf3 {[%clk 0:02:59]}  Bg7 {[%clk 0:02:59]} 3. Nc3 {[%clk 0:02:58]}  d6 {[%clk 0:02:57]} 4. Bc4 {[%clk 0:02:59]}  e6 {[%clk 0:02:56]} 5. d4 {[%clk 0:02:58]}  a6 {[%clk 0:02:56]} 6. O-O {[%clk 0:02:59]}  b5 {[%clk 0:02:55]} 7. Bb3 {[%clk 0:02:59]}  Bb7 {[%clk 0:02:55]} 8. Re1 {[%clk 0:02:59]}  Ne7 {[%clk 0:02:54]} 9. h4 {[%clk 0:02:54]}  Nd7 {[%clk 0:02:48]} 10. h5 {[%clk 0:02:54]}  c5 {[%clk 0:02:46]} 11. h6 {[%clk 0:02:46]}  Bf8 {[%clk 0:02:01]} 12. a3 {[%clk 0:02:23]}  c4 {[%clk 0:01:55]} 13. Ba2 {[%clk 0:02:22]}  Qc7 {[%clk 0:01:50]} 14. Ng5 {[%clk 0:01:26]}  Ng8 {[%clk 0:01:19]} 15. a4 {[%clk 0:00:58]}  b4 {[%clk 0:01:17]} 16. Nd5 {[%clk 0:00:45]}  exd5 {[%clk 0:01:10]} 17. exd5+ {[%clk 0:00:46]}  Be7 {[%clk 0:01:10]} 18. Qf3 {[%clk 0:00:41]}  Ngf6 {[%clk 0:01:03]} 19. Qe2 {[%clk 0:00:36]}  Nxd5 {[%clk 0:00:59]} 20. Bxc4 {[%clk 0:00:31]}  N7f6 {[%clk 0:00:56]} 21. Nxf7 {[%clk 0:00:22]}  Kxf7 {[%clk 0:00:51]} 22. Bg5 {[%clk 0:00:21]}  Rhe8 {[%clk 0:00:41]} 23. Qe6+ {[%clk 0:00:17]}  Kf8 {[%clk 0:00:41]} 24. Re3 {[%clk 0:00:12]}  Bd8 {[%clk 0:00:36]} 25. Qh3 {[%clk 0:00:03]}  Nxe3 {[%clk 0:00:33]} 26. fxe3 {[%clk 0:00:03]}  Qxc4 {[%clk 0:00:33]} 27. Rf1 {[%clk 0:00:03]}  Qe6 {[%clk 0:00:23]} 28. Qf3 {[%clk 0:00:01]}  Kg8 {[%clk 0:00:20]} 29. Qxb7 {[%clk 0:00:01]}  Be7 {[%clk 0:00:15]} 30. Bxf6 {[%clk 0:00:01]}  Bxf6 {[%clk 0:00:13]} 31. Qc6 {[%clk 0:00:01]}  Rac8 {[%clk 0:00:12]} 32. Qb7 {[%clk 0:00:01]}  Rxc2 {[%clk 0:00:09]} 33. Rxf6 {[%clk 0:00:01]}  Qxf6 {[%clk 0:00:08]} 34. Qd5+ {[%clk 0:00:02]}  Qf7 {[%clk 0:00:08]} 35. Qb7 {[%clk 0:00:00]}  Qxb7 {[%clk 0:00:08]} 0-1


[Site "https://www.chess.com"]

[Event "Titled Tuesday Blitz May 23 Early 2023"]
[White "Fajdetic, Hrvoje"]
[Black "Rom, Jasper"]
[WhiteFideId "14501945"]
[BlackFideId "2023733"]
[WhiteElo "2185"]
[BlackElo "2233"]
[Result "1-0"]
[Round "06"]
[TimeControl "180+2"]
[Date "2023.05.23"]
[WhiteClock "0:00:08"]
[BlackClock "0:00:00"]

1. d4 {[%clk 0:02:49]}  d5 {[%clk 0:02:59]} 2. Bf4 {[%clk 0:02:48]}  Nf6 {[%clk 0:02:57]} 3. e3 {[%clk 0:02:48]}  c5 {[%clk 0:02:58]} 4. Nc3 {[%clk 0:02:44]}  a6 {[%clk 0:02:49]} 5. dxc5 {[%clk 0:02:43]}  Nc6 {[%clk 0:02:49]} 6. Nf3 {[%clk 0:02:42]}  e6 {[%clk 0:02:48]} 7. Na4 {[%clk 0:02:41]}  Ne4 {[%clk 0:02:39]} 8. Nb6 {[%clk 0:02:32]}  Ra7 {[%clk 0:02:38]} 9. Na4 {[%clk 0:02:26]}  Nxc5 {[%clk 0:02:35]} 10. Nxc5 {[%clk 0:02:24]}  Bxc5 {[%clk 0:02:36]} 11. c3 {[%clk 0:02:19]}  O-O {[%clk 0:02:29]} 12. Bd3 {[%clk 0:02:18]}  f6 {[%clk 0:02:24]} 13. h4 {[%clk 0:02:16]}  e5 {[%clk 0:02:22]} 14. Bxh7+ {[%clk 0:02:15]}  Kf7 {[%clk 0:01:37]} 15. Bg3 {[%clk 0:00:49]}  Bg4 {[%clk 0:01:28]} 16. Qb3 {[%clk 0:00:39]}  Na5 {[%clk 0:01:10]} 17. Qd1 {[%clk 0:00:31]}  Qd7 {[%clk 0:00:33]} 18. Bxe5 {[%clk 0:00:15]}  Nc4 {[%clk 0:00:23]} 19. Bd4 {[%clk 0:00:13]}  b6 {[%clk 0:00:17]} 20. b3 {[%clk 0:00:12]}  Nd6 {[%clk 0:00:06]} 21. Qc2 {[%clk 0:00:11]}  Be6 {[%clk 0:00:05]} 22. Bg6+ {[%clk 0:00:09]}  Ke7 {[%clk 0:00:03]} 23. h5 {[%clk 0:00:10]}  Ne4 {[%clk 0:00:02]} 24. Bxe4 {[%clk 0:00:09]}  dxe4 {[%clk 0:00:02]} 25. Qxe4 {[%clk 0:00:09]}  Re8 {[%clk 0:00:00]} 26. h6 {[%clk 0:00:08]} 1-0


[Site "https://www.chess.com"]

[Event "Titled Tuesday Blitz May 23 Early 2023"]
[White "Ljukin, Sergei"]
[Black "mohsengabr2002"]
[WhiteFideId "14102200"]
[WhiteElo "2312"]
[BlackElo "2298"]
[Result "1-0"]
[Round "06"]
[TimeControl "180+2"]
[Date "2023.05.23"]
[WhiteClock "0:01:19"]
[BlackClock "0:01:45"]

1. e4 {[%clk 0:02:46]}  f6 {[%clk 0:02:59]} 2. d4 {[%clk 0:02:45]}  g6 {[%clk 0:02:59]} 3. f4 {[%clk 0:02:45]}  e6 {[%clk 0:02:59]} 4. Nf3 {[%clk 0:02:45]}  Nh6 {[%clk 0:03:00]} 5. c4 {[%clk 0:02:43]}  f5 {[%clk 0:03:00]} 6. e5 {[%clk 0:02:43]}  Nf7 {[%clk 0:03:00]} 7. Nc3 {[%clk 0:02:43]}  d6 {[%clk 0:03:00]} 8. Be3 {[%clk 0:02:40]}  dxe5 {[%clk 0:03:00]} 9. dxe5 {[%clk 0:02:40]}  Qe7 {[%clk 0:02:57]} 10. Qd2 {[%clk 0:02:18]}  b6 {[%clk 0:02:55]} 11. g3 {[%clk 0:02:12]}  Bb7 {[%clk 0:02:54]} 12. Bg2 {[%clk 0:02:12]}  Nd7 {[%clk 0:02:52]} 13. Nd4 {[%clk 0:02:10]}  Nc5 {[%clk 0:01:58]} 14. Bxb7 {[%clk 0:01:37]}  Nxb7 {[%clk 0:01:57]} 15. Qg2 {[%clk 0:01:35]}  Nfd8 {[%clk 0:01:56]} 16. O-O-O {[%clk 0:01:23]}  a6 {[%clk 0:01:54]} 17. Nc6 {[%clk 0:01:20]}  Qb4 {[%clk 0:01:45]} 18. Nxb4 {[%clk 0:01:19]} 1-0


[Site "https://www.chess.com"]

[Event "Titled Tuesday Blitz May 23 Early 2023"]
[White "Antonio, Jorge Carlos"]
[Black "Pasti, Aron"]
[WhiteFideId "113190"]
[BlackFideId "785857"]
[WhiteElo "2247"]
[BlackElo "2173"]
[Result "0-1"]
[Round "06"]
[TimeControl "180+2"]
[Date "2023.05.23"]
[WhiteClock "0:00:02"]
[BlackClock "0:01:47"]

1. d4 {[%clk 0:01:52]}  d5 {[%clk 0:02:59]} 2. Nf3 {[%clk 0:01:51]}  Nf6 {[%clk 0:03:00]} 3. Bf4 {[%clk 0:01:50]}  c5 {[%clk 0:02:59]} 4. e3 {[%clk 0:01:50]}  Nc6 {[%clk 0:02:58]} 5. c3 {[%clk 0:01:51]}  Bf5 {[%clk 0:02:59]} 6. Bd3 {[%clk 0:01:49]}  Bxd3 {[%clk 0:02:52]} 7. Qxd3 {[%clk 0:01:48]}  e6 {[%clk 0:02:53]} 8. Ne5 {[%clk 0:01:47]}  Nxe5 {[%clk 0:02:51]} 9. Bxe5 {[%clk 0:01:46]}  Qb6 {[%clk 0:02:52]} 10. b3 {[%clk 0:01:44]}  c4 {[%clk 0:02:50]} 11. bxc4 {[%clk 0:01:40]}  Qb2 {[%clk 0:02:48]} 12. Bxf6 {[%clk 0:01:29]}  gxf6 {[%clk 0:02:43]} 13. cxd5 {[%clk 0:01:29]}  exd5 {[%clk 0:02:39]} 14. O-O {[%clk 0:01:16]}  Qxa1 {[%clk 0:02:33]} 15. Qc2 {[%clk 0:01:15]}  Rc8 {[%clk 0:02:27]} 16. e4 {[%clk 0:01:08]}  Bd6 {[%clk 0:02:22]} 17. exd5 {[%clk 0:01:03]}  O-O {[%clk 0:02:21]} 18. Rd1 {[%clk 0:00:57]}  Bb4 {[%clk 0:02:19]} 19. c4 {[%clk 0:00:33]}  Rfe8 {[%clk 0:02:13]} 20. h3 {[%clk 0:00:19]}  Red8 {[%clk 0:02:03]} 21. Kh2 {[%clk 0:00:16]}  Rxd5 {[%clk 0:02:01]} 22. Qb3 {[%clk 0:00:13]}  Rxd4 {[%clk 0:01:53]} 23. Rxd4 {[%clk 0:00:11]}  Qxd4 {[%clk 0:01:54]} 24. Qxb4 {[%clk 0:00:11]}  Qxc4 {[%clk 0:01:54]} 25. Qd2 {[%clk 0:00:08]}  Qc2 {[%clk 0:01:51]} 26. Qd7 {[%clk 0:00:07]}  Qc7+ {[%clk 0:01:49]} 27. Qxc7 {[%clk 0:00:07]}  Rxc7 {[%clk 0:01:50]} 28. Nd2 {[%clk 0:00:07]}  Rc2 {[%clk 0:01:50]} 29. Ne4 {[%clk 0:00:05]}  Rxa2 {[%clk 0:01:50]} 30. Nxf6+ {[%clk 0:00:05]}  Kg7 {[%clk 0:01:51]} 31. Ne8+ {[%clk 0:00:05]}  Kf8 {[%clk 0:01:51]} 32. Nd6 {[%clk 0:00:05]}  b6 {[%clk 0:01:49]} 33. f4 {[%clk 0:00:04]}  Rd2 {[%clk 0:01:48]} 34. h4 {[%clk 0:00:02]}  Rxd6 {[%clk 0:01:47]} 0-1


[Site "https://www.chess.com"]